fUST/lending_fUST_20240928
["ID","MTS","AMOUNT","RATE_DAILY","PERIOD"]
[339379553,1727519442960,-580.69262462,0.00050399,30]
[339379577,1727519446098,-299.63132856,0.00050389,3]
[339379578,1727519507891,157.22,0.000326,31]
[339379579,1727519507955,157.22,0.000326,31]
[339379580,1727519508014,157.22,0.000266,31]
[339379581,1727519508065,157.22,0.000387,31]
[339379582,1727519508118,157.22,0.000387,31]
[339379583,1727519508198,157.22,0.000447,36]
[339379584,1727519508370,157.22,0.000447,36]
[339379585,1727519511682,261.60272938,0.00044084,31]
[339379586,1727519511703,58.79727062,0.00044084,31]
[339379587,1727519519647,313.568791,0.00035616,2]
[339379588,1727519519776,313.568791,0.00040952,2]
[339379590,1727519592681,3000.0,0.00021,2]
[339379591,1727519593367,3000.0,0.0002101,2]
[339379592,1727519593737,4634.850343,0.0002102,2]
[339379594,1727519888604,-842.0,0.00040952,2]
[339379595,1727519909945,-158.0,0.00040952,2]
[339379596,1727519909972,-153.03361586,0.00043916,4]
[339379597,1727519910000,-168.839507,0.00044016,2]
[339379598,1727519910026,-41.12687714,0.00044049,31]
[339379600,1727519926851,1254.30186201,0.00021,2]
[339379601,1727519926876,745.69813799,0.00021,2]
[339379602,1727519946366,-500.0,0.00040952,2]
[339379603,1727519946394,-175.575444,0.00043533,2]
[339379604,1727519946421,-252.57312286,0.00044049,31]
[339379605,1727519946449,-71.85143314,0.00044245,2]
[339379606,1727519955273,2000.0,0.00021,2]
[339379607,1727519957269,-96.98807386,0.00044245,2]
[339379608,1727519957299,-168.839507,0.00044474,2]
[339379609,1727519957326,-153.03361586,0.00044603,4]
[339379610,1727519957352,-168.839507,0.00044704,2]
[339379611,1727519957379,-168.839507,0.00044933,2]
[339379613,1727519979558,246.675028,0.0002,2]
[339379614,1727520061364,500.0,0.00049989,120]
[339379615,1727520071466,620.0,0.00049989,120]
[339379616,1727520109573,152.52,0.000266,31]
[339379617,1727520109623,152.52,0.000266,31]
[339379618,1727520109787,152.52,0.000266,31]
[339379619,1727520109830,152.52,0.000266,31]
[339379620,1727520109870,152.52,0.000266,31]
[339379621,1727520109906,152.52,0.000326,31]
[339379622,1727520109950,152.52,0.000326,31]
[339379623,1727520109987,152.52,0.000326,31]
[339379624,1727520110053,152.52,0.000326,31]
[339379625,1727520110108,152.52,0.000326,31]
[339379626,1727520110283,152.52,0.000326,31]
[339379627,1727520110339,152.52,0.000326,31]
[339379628,1727520110388,152.52,0.000326,31]
[339379629,1727520110450,152.52,0.000326,31]
[339379630,1727520110500,152.52,0.000326,31]
[339379632,1727520192534,150.0,0.00021,2]
[339379633,1727520261540,-152.52,0.000387,31]
[339379634,1727520261573,-152.52,0.000387,31]
[339379635,1727520261605,-152.52,0.000387,31]
[339379636,1727520261637,-152.52,0.000387,31]
[339379637,1727520261669,-152.52,0.000387,31]
[339379638,1727520261701,-152.52,0.000387,31]
[339379639,1727520261731,-84.88,0.000387,31]
[339379640,1727520275779,-67.64,0.000387,31]
[339379641,1727520275809,-152.52,0.000387,31]
[339379642,1727520275838,-152.52,0.000387,31]
[339379643,1727520275866,-152.52,0.000387,31]
[339379644,1727520275891,-300.0,0.000417,10]
[339379646,1727520343167,-400.0,0.00035616,2]
[339379647,1727520343191,-1224.26892688,0.00040852,4]
[339379648,1727520343213,-400.0,0.00040952,2]
[339379649,1727520343235,-161.044977,0.00043278,2]
[339379650,1727520343258,-218.65660786,0.00044048,31]
[339379651,1727520349106,-168.839507,0.00043116,2]
[339379652,1727520349131,-168.839507,0.00043566,2]
[339379653,1727520349155,-168.839507,0.00044015,2]
[339379654,1727520349177,-50.64339214,0.00044048,31]
[339379655,1727520349200,-760.66650373,0.00044194,2]
[339379656,1727520428130,-237.27844732,0.00044065,31]
[339379657,1727520430099,-9.52155268,0.00044065,31]
[339379658,1727520430123,-506.32914027,0.00044194,2]
[339379659,1727520430146,-54.49096931,0.00044245,2]
[339379660,1727520448130,-945.50903069,0.00044245,2]
[339379661,1727520448259,-168.839507,0.00044464,2]
[339379662,1727520448286,-152.52,0.000447,36]
[339379663,1727520448314,-152.52,0.000447,36]
[339379664,1727520448342,-152.52,0.000447,36]
[339379665,1727520448369,-152.52,0.000447,36]
[339379666,1727520448395,-152.52,0.000447,36]
[339379667,1727520448421,-152.52,0.000447,36]
[339379668,1727520448447,-152.52,0.000447,36]
[339379669,1727520448478,-152.52,0.000447,36]
[339379670,1727520448505,-152.52,0.000447,36]
[339379671,1727520448534,-152.52,0.000447,36]
[339379672,1727520448557,-168.839507,0.00044914,2]
[339379673,1727520448578,-846.66076469,0.00045,120]
[339379674,1727520453151,-2651.60298519,0.00045,120]
[339379675,1727520453174,-168.839507,0.00045363,2]
[339379676,1727520453196,-400.0,0.00046287,2]
[339379677,1727520453219,-201.91,0.00046664,77]
[339379678,1727520453242,-2592.83220584,0.00047152,2]
[339379679,1727520612969,151.0,0.0003,120]
[339379680,1727520613552,151.0,0.00045014,120]
[339379681,1727520627646,484.0,0.0003,120]
[339379682,1727520627794,214.0,0.000485,120]
[339379698,1727520631944,-426.98215575,0.00047896,2]
[339379699,1727520631956,-672.03403991,0.00047896,2]
[339379700,1727520631966,-409.04811194,0.00048499,120]
[339379701,1727520631980,-90.95188806,0.00048499,120]
[339379702,1727520631991,-283.96582288,0.00048499,120]
[339379703,1727520632001,-263.55605025,0.000485,120]
[339379704,1727520632012,-433.8591904,0.000485,120]
[339379705,1727520632035,-475.41938185,0.000485,120]
[339379761,1727520638167,-69.7204801,0.00048499,7]
[339379807,1727520643325,-319.06112074,0.00048499,7]
[339379808,1727520643335,-389.3288792,0.000485,120]
[339379858,1727520646329,-1696.22416463,0.000485,120]
[339379859,1727520646345,-841.1231325,0.000485,120]
[339379860,1727520646358,-836.53573071,0.000485,120]
[339379861,1727520661950,161.044978,0.00035205,2]
[339379862,1727520679724,314.72176,0.00035616,2]
[339379863,1727520679930,314.72176,0.00040952,2]
[339379864,1727520680364,314.72176,0.00046287,2]
[339379865,1727520711141,289.6,0.00043985,31]
[339379866,1727520730380,151.0,0.0003,120]
[339379867,1727520730936,151.0,0.00045014,120]
[339379868,1727520742705,484.0,0.0003,120]
[339379869,1727520792359,3000.0,0.00021,2]
[339379870,1727520792682,3000.0,0.0002101,2]
[339379871,1727520793106,3000.0,0.0002102,2]
[339379872,1727520793567,3000.0,0.0002103,2]
[339379873,1727520793909,3000.0,0.0002104,2]
[339379874,1727520794618,3000.0,0.0002105,2]
[339379875,1727520795015,1569.82683401,0.0002106,2]
[339379876,1727520795041,1430.17316599,0.0002106,2]
[339379877,1727520795363,3000.0,0.0002107,2]
[339379878,1727520795989,4984.800298,0.0002108,2]
[339379883,1727521164263,-800.0,0.0003401,120]
[339379884,1727521164424,-800.0,0.0003401,120]
[339379885,1727521164460,-800.0,0.00034313,120]
[339379886,1727521164494,-800.0,0.00034313,120]
[339379887,1727521164528,-800.0,0.00034313,120]
[339379888,1727521164563,-800.0,0.00034313,120]
[339379889,1727521164604,-800.0,0.00034313,120]
[339379890,1727521164637,-800.0,0.00034313,120]
[339379891,1727521164672,-800.0,0.00034313,120]
[339379892,1727521164705,-1345.90901355,0.00034313,120]
[339379893,1727521164738,-501.80963341,0.000344,2]
[339379894,1727521164772,-376.55632363,0.000344,2]
[339379896,1727521312707,-800.0,0.00036846,120]
[339379897,1727521312733,-200.0,0.00036977,120]
[339379898,1727521314860,159.54,0.000266,31]
[339379899,1727521314905,159.54,0.000326,31]
[339379900,1727521314957,159.54,0.000326,31]
[339379901,1727521316627,-600.0,0.00036977,120]
[339379902,1727521316654,-400.0,0.00038,120]
[339379903,1727521318560,-1000.0,0.00038,120]
[339379904,1727521320241,-1000.0,0.00038,120]
[339379905,1727521323514,-1000.0,0.00038,120]
[339379919,1727521393734,2157.824292,0.00021,2]
[339379920,1727521418057,-94.0,0.00038,120]
[339379922,1727521529805,200.0,0.00033,2]
[339379923,1727521545720,-500.0,0.00038,120]
[339379925,1727521552334,-354.261944,0.00035616,2]
[339379926,1727521552360,-159.54,0.000387,31]
[339379927,1727521552385,-159.54,0.000387,31]
[339379928,1727521552405,-163.410026,0.00039544,2]
[339379929,1727521552425,-354.261944,0.00040952,2]
[339379930,1727521552446,-250.0,0.00041054,2]
[339379931,1727521552466,-532.3971369,0.00041512,2]
[339379932,1727521553563,-1530.9293005,0.00041512,2]
[339379933,1727521553584,-550.0,0.00042165,5]
[339379934,1727521553612,-400.0,0.00042166,30]
[339379935,1727521553634,-30.32120045,0.00042167,2]
[339379936,1727521627097,-508.896,0.00037808,120]
[339379937,1727521627120,-20.10636514,0.00042608,2]
[339379938,1727521631149,-229.89363486,0.00042608,2]
[339379939,1727521631171,-306.06723172,0.00042625,4]
[339379940,1727521631195,-250.0,0.00042725,2]
[339379941,1727521631224,-250.0,0.00042842,2]
[339379942,1727521631246,-250.0,0.00042959,2]
[339379943,1727521631270,-250.0,0.00043075,2]
[339379944,1727521631295,-250.0,0.00043192,2]
[339379945,1727521631320,-250.0,0.00043309,2]
[339379946,1727521631346,-250.0,0.00043426,2]
[339379947,1727521631368,-250.0,0.00043543,2]
[339379948,1727521631391,-250.0,0.0004366,2]
[339379949,1727521631416,-250.0,0.00043777,2]
[339379950,1727521631440,-250.0,0.00043893,2]
[339379951,1727521631462,-350.3,0.00043895,31]
[339379952,1727521631487,-250.0,0.0004401,2]
[339379953,1727521631510,-250.0,0.00044127,2]
[339379954,1727521631535,-250.0,0.00044244,2]
[339379955,1727521631562,-31.19601343,0.00044361,2]
[339379956,1727521635129,-218.80398657,0.00044361,2]
[339379957,1727521635155,-248.74096227,0.00044478,2]
[339379958,1727521640103,-209.52019565,0.00043676,2]
[339379959,1727521640127,-1.25903773,0.00044478,2]
[339379960,1727521640150,-250.0,0.00044594,2]
[339379961,1727521640183,-159.54,0.000447,36]
[339379962,1727521640209,-159.54,0.000447,36]
[339379963,1727521640232,-250.0,0.00044711,2]
[339379964,1727521640255,-215.40732189,0.00044828,2]
[339379965,1727521647096,-34.59267811,0.00044828,2]
[339379966,1727521647119,-354.261944,0.00046287,2]
[339379967,1727521647141,-201.9105212,0.0004754,80]
[339379968,1727521647163,-979.83545175,0.0004763,2]
[339379969,1727521653100,-1713.34995529,0.0004763,2]
[339379972,1727521746088,-168.0150828,0.00041624,2]
[339379973,1727521762504,342.066441,0.00042312,2]
[339379974,1727521796149,326.68441,0.00035616,2]
[339379975,1727521796356,326.68441,0.00040952,2]
[339379976,1727521796580,326.68441,0.00046287,2]
[339379978,1727521824333,163.32008314,0.00046287,120]
[339380012,1727521832232,-196.8988154,0.00048087,2]
[339380015,1727521832245,-4337.33066313,0.00048215,2]
[339380017,1727521832254,-1000.0,0.00048399,60]
[339380019,1727521832264,-1000.0,0.00048399,60]
[339380021,1727521832273,-1000.0,0.00048399,60]
[339380023,1727521832282,-174.165612,0.00048399,60]
[339380024,1727521832292,-5458.82133886,0.000484,120]
[339380026,1727521832302,-1500.0,0.000488,120]
[339380027,1727521832313,-1226.19088604,0.00049,30]
[339380028,1727521832323,-1250.0,0.00049594,120]
[339380029,1727521832333,-6036.78701615,0.00049668,28]
[339380030,1727521832343,-310.52843239,0.00049768,10]
[339380031,1727521832353,-1000.0,0.000498,120]
[339380032,1727521832363,-150.112233,0.000498,10]
[339380033,1727521832373,-1830.37925999,0.00049868,120]
[339380073,1727521838513,-851.30631796,0.000489,30]
[339380156,1727521843554,-279.02783344,0.0004889,30]
[339380160,1727521846479,-479.79931318,0.0004889,30]
[339380161,1727521846496,-109.77285338,0.0004889,30]
[339380162,1727521846508,-731.35027912,0.0004889,3]
[339380163,1727521846528,-664.78972088,0.0004889,3]
[339380164,1727521846540,-1038957.40870538,0.000489,30]
[339380165,1727521846551,-669.62074001,0.00049868,120]
[339380166,1727521846563,-4768.64710819,0.000499,61]
[339380167,1727521846574,-24961.40513305,0.000499,30]
[339380168,1727521846584,-12105.72693014,0.000499,30]
[339380169,1727521846595,-9804.67830888,0.00049969,91]
[339380170,1727521846607,-5460.05606955,0.0004997,7]
[339380171,1727521846622,-1042.32,0.0004997,30]
[339380172,1727521846633,-481.56518546,0.00049973,10]
[339380173,1727521846647,-500.0,0.00049973,10]
[339380174,1727521846659,-566.56446736,0.00049973,7]
[339380175,1727521846671,-502.14916811,0.00049973,10]
[339380176,1727521846683,-151.0,0.0004998,120]
[339380177,1727521846695,-276.341233,0.0004998,120]
[339380178,1727521846707,-151.0,0.0004998,30]
[339380179,1727521846720,-151.0,0.0004998,120]
[339380180,1727521846733,-151.0,0.0004998,120]
[339380181,1727521846746,-151.0,0.0004998,120]
[339380182,1727521846759,-151.0,0.0004998,120]
[339380183,1727521846774,-151.0,0.0004998,120]
[339380184,1727521846786,-206.556517,0.0004998,120]
[339380185,1727521846796,-206.556517,0.0004998,120]
[339380186,1727521846807,-151.0,0.0004998,120]
[339380187,1727521846820,-151.0,0.0004998,120]
[339380188,1727521846830,-151.0,0.0004998,120]
[339380189,1727521846841,-151.0,0.0004998,120]
[339380190,1727521846853,-151.0,0.0004998,120]
[339380191,1727521846865,-151.0,0.0004998,120]
[339380192,1727521846876,-151.0,0.0004998,120]
[339380193,1727521846890,-287.084008,0.0004998,120]
[339380194,1727521846903,-161.211059,0.0004998,120]
[339380195,1727521846916,-161.211059,0.0004998,120]
[339380196,1727521846926,-161.211059,0.0004998,120]
[339380197,1727521846937,-161.211059,0.0004998,120]
[339380198,1727521846950,-151.0,0.0004998,120]
[339380199,1727521846962,-151.0,0.0004998,120]
[339380200,1727521846974,-151.0,0.0004998,120]
[339380201,1727521846984,-151.0,0.0004998,120]
[339380202,1727521846995,-239.24714,0.0004998,120]
[339380203,1727521847008,-239.24714,0.0004998,120]
[339380204,1727521847020,-239.24714,0.0004998,120]
[339380205,1727521847032,-239.24714,0.0004998,120]
[339380206,1727521847043,-151.0,0.0004998,120]
[339380207,1727521847055,-151.0,0.0004998,120]
[339380208,1727521847066,-151.0,0.0004998,30]
[339380209,1727521847077,-151.0,0.0004998,30]
[339380210,1727521847087,-151.0,0.0004998,120]
[339380211,1727521847098,-151.0,0.0004998,120]
[339380212,1727521847108,-151.0,0.0004998,7]
[339380213,1727521847118,-151.628506,0.0004998,7]
[339380214,1727521847129,-151.0,0.0004998,120]
[339380215,1727521847142,-151.0,0.0004998,120]
[339380216,1727521847154,-151.0,0.0004998,120]
[339380217,1727521847165,-151.0,0.0004998,120]
[339380218,1727521847176,-351.730114,0.0004998,120]
[339380219,1727521847187,-351.730114,0.0004998,120]
[339380220,1727521847198,-351.730114,0.0004998,120]
[339380221,1727521847208,-351.730114,0.0004998,120]
[339380222,1727521847218,-151.0,0.0004998,120]
[339380223,1727521847229,-181.194141,0.0004998,120]
[339380224,1727521847239,-1108.192677,0.0004998,120]
[339380225,1727521847250,-1108.192677,0.0004998,120]
[339380226,1727521847261,-1108.192677,0.0004998,120]
[339380227,1727521847272,-1108.192677,0.0004998,120]
[339380228,1727521847282,-151.0,0.0004998,2]
[339380229,1727521847293,-151.0,0.0004998,2]
[339380230,1727521847304,-151.0,0.0004998,120]
[339380231,1727521847317,-152.979132,0.0004998,120]
[339380232,1727521847328,-151.0,0.0004998,120]
[339380233,1727521847339,-151.0,0.0004998,120]
[339380234,1727521847350,-151.0,0.0004998,120]
[339380235,1727521847360,-193.768137,0.0004998,120]
[339380236,1727521847371,-151.0,0.0004998,120]
[339380237,1727521847381,-152.676228,0.0004998,120]
[339380238,1727521847500,-500.0,0.00049989,120]
[339380239,1727521847514,-384.13378819,0.00049989,120]
[339380240,1727521847525,-886.6,0.00049989,120]
[339380241,1727521847534,-999.0,0.00049989,120]
[339380242,1727521847544,-151.0,0.0004999,120]
[339380243,1727521847554,-151.0,0.0004999,120]
[339380244,1727521847564,-151.0,0.0004999,120]
[339380245,1727521847574,-151.0,0.0004999,120]
[339380246,1727521847584,-151.0,0.0004999,120]
[339380247,1727521847593,-151.0,0.0004999,7]
[339380248,1727521847602,-151.0,0.0004999,7]
[339380249,1727521847611,-151.0,0.0004999,120]
[339380250,1727521847621,-1820.01868985,0.0004999,7]
[339380251,1727521847630,-1675.36,0.0004999,3]
[339380252,1727521847640,-2000.0,0.0005,50]
[339380253,1727521847650,-4712.0,0.0005,120]
[339380254,1727521847660,-5000.0,0.0005,60]
[339380255,1727521847669,-3498.26374988,0.0005,120]
[339380256,1727521847679,-150.112233,0.0005,11]
[339380257,1727521847688,-151.0,0.0005,120]
[339380258,1727521847697,-151.0,0.0005,120]
[339380259,1727521847707,-151.0,0.0005,120]
[339380260,1727521847716,-351.730114,0.0005,120]
[339380261,1727521847726,-351.730114,0.0005,120]
[339380262,1727521847736,-1108.192677,0.0005,120]
[339380263,1727521847745,-1108.192677,0.0005,120]
[339380264,1727521847755,-151.453569,0.0005,2]
[339380265,1727521847765,-151.0,0.0005,120]
[339380266,1727521847778,-151.0,0.0005,120]
[339380267,1727521847788,-151.0,0.0005,120]
[339380268,1727521847797,-151.0,0.0005,120]
[339380269,1727521847806,-151.0,0.0005,120]
[339380270,1727521847816,-151.0,0.0005,120]
[339380271,1727521847825,-151.0,0.00050043,120]
[339380272,1727521847834,-151.0,0.00050043,120]
[339380273,1727521847844,-151.0,0.00050043,120]
[339380274,1727521847854,-151.0,0.00050043,120]
[339380275,1727521847864,-151.0,0.00050043,120]
[339380276,1727521847874,-151.0,0.00050043,7]
[339380277,1727521847883,-151.0,0.00050043,7]
[339380278,1727521847895,-151.0,0.00050043,120]
[339380279,1727521847904,-155.700668,0.00050043,120]
[339380280,1727521847914,-156.676481,0.00050043,120]
[339380281,1727521847924,-206.556517,0.00050043,120]
[339380282,1727521847933,-151.0,0.00050043,120]
[339380283,1727521847943,-173.392309,0.00050043,120]
[339380284,1727521847952,-161.211059,0.00050043,120]
[339380285,1727521847961,-161.211059,0.00050043,120]
[339380286,1727521847971,-151.0,0.00050043,120]
[339380287,1727521847981,-239.24714,0.00050043,120]
[339380288,1727521847991,-239.24714,0.00050043,120]
[339380289,1727521848000,-151.0,0.00050043,120]
[339380290,1727521848010,-152.203019,0.00050043,30]
[339380291,1727521848020,-151.0,0.00050043,120]
[339380292,1727521848030,-164.881883,0.00050043,120]
[339380293,1727521848040,-151.0,0.00050043,120]
[339380294,1727521848050,-151.0,0.00050043,120]
[339380295,1727521848060,-151.0,0.00050043,120]
[339380296,1727521848071,-3750.0,0.00050142,120]
[339380297,1727521848082,-5460.05606955,0.0005018,7]
[339380298,1727521848091,-151.0,0.0005019,120]
[339380299,1727521848101,-206.556517,0.0005019,120]
[339380300,1727521848111,-206.556517,0.0005019,120]
[339380301,1727521848121,-206.556517,0.0005019,120]
[339380302,1727521848131,-206.556517,0.0005019,120]
[339380303,1727521848142,-151.0,0.0005019,120]
[339380304,1727521848151,-151.0,0.0005019,120]
[339380305,1727521848161,-161.211059,0.0005019,120]
[339380306,1727521848172,-161.211059,0.0005019,120]
[339380307,1727521848183,-161.211059,0.0005019,120]
[339380308,1727521848192,-161.211059,0.0005019,120]
[339380309,1727521848201,-151.0,0.0005019,120]
[339380310,1727521848211,-151.0,0.0005019,120]
[339380311,1727521848221,-239.24714,0.0005019,120]
[339380312,1727521848231,-239.24714,0.0005019,120]
[339380313,1727521848242,-239.24714,0.0005019,120]
[339380314,1727521848251,-239.24714,0.0005019,120]
[339380315,1727521848262,-190.79867,0.0005019,120]
[339380316,1727521848271,-151.0,0.0005019,120]
[339380317,1727521848280,-183.509934,0.0005019,120]
[339380318,1727521848290,-151.0,0.0005019,120]
[339380319,1727521848300,-155.738722,0.0005019,120]
[339380320,1727521848310,-151.0,0.0005019,120]
[339380321,1727521848321,-151.0,0.0005019,120]
[339380322,1727521848330,-351.730114,0.0005019,120]
[339380323,1727521848340,-351.730114,0.0005019,120]
[339380324,1727521848350,-351.730114,0.0005019,120]
[339380325,1727521848360,-351.730114,0.0005019,120]
[339380326,1727521848370,-1108.192677,0.0005019,120]
[339380327,1727521848380,-1108.192677,0.0005019,120]
[339380328,1727521848389,-1108.192677,0.0005019,120]
[339380329,1727521848399,-1108.192677,0.0005019,120]
[339380330,1727521848408,-151.0,0.0005019,120]
[339380331,1727521848418,-154.324462,0.0005019,120]
[339380332,1727521848428,-151.0,0.0005019,120]
[339380333,1727521848437,-151.0,0.0005019,120]
[339380334,1727521848447,-151.0,0.0005019,120]
[339380335,1727521848458,-151.0,0.00050199,120]
[339380336,1727521848468,-151.0,0.00050199,120]
[339380337,1727521848477,-152.747632,0.00050199,120]
[339380338,1727521848486,-151.0,0.00050199,120]
[339380339,1727521848496,-151.0,0.00050199,120]
[339380340,1727521848506,-150.112233,0.000502,14]
[339380341,1727521848515,-4885.43851947,0.000502,120]
[339380342,1727521848525,-9100.09344925,0.00050279,7]
[339380343,1727521848534,-151.0,0.00050279,120]
[339380344,1727521848544,-151.0,0.00050279,120]
[339380345,1727521848553,-151.0,0.00050289,120]
[339380346,1727521848563,-151.0,0.00050289,120]
[339380347,1727521848574,-274.59936,0.00050289,120]
[339380348,1727521848583,-151.0,0.00050289,120]
[339380349,1727521848592,-1725.096911,0.00050289,14]
[339380350,1727521848602,-1725.096911,0.00050289,14]
[339380351,1727521848611,-155.119983,0.00050289,120]
[339380352,1727521848621,-151.0,0.00050289,120]
[339380353,1727521848631,-151.0,0.00050289,120]
[339380354,1727521848640,-151.0,0.00050289,120]
[339380355,1727521848649,-151.0,0.00050289,120]
[339380356,1727521848659,-152.057944,0.00050289,120]
[339380357,1727521848668,-151.0,0.00050289,120]
[339380358,1727521848679,-151.0,0.00050289,120]
[339380359,1727521848689,-291.890696,0.00050289,120]
[339380360,1727521848699,-151.0,0.00050289,7]
[339380361,1727521848708,-151.0,0.00050289,7]
[339380362,1727521848717,-176.981544,0.00050289,120]
[339380363,1727521848727,-151.0,0.00050289,120]
[339380364,1727521848737,-218.522196,0.00050289,120]
[339380365,1727521848747,-206.556517,0.00050289,120]
[339380366,1727521848757,-206.556517,0.00050289,120]
[339380367,1727521848770,-206.556517,0.00050289,120]
[339380368,1727521848780,-206.556517,0.00050289,120]
[339380369,1727521848790,-151.0,0.00050289,120]
[339380370,1727521848800,-218.827573,0.00050289,120]
[339380371,1727521848811,-161.211059,0.00050289,120]
[339380372,1727521848822,-161.211059,0.00050289,120]
[339380373,1727521848831,-161.211059,0.00050289,120]
[339380374,1727521848842,-161.211059,0.00050289,120]
[339380375,1727521848853,-244.740066,0.00050289,120]
[339380376,1727521848863,-239.24714,0.00050289,120]
[339380377,1727521848874,-239.24714,0.00050289,120]
[339380378,1727521848884,-239.24714,0.00050289,120]
[339380379,1727521848893,-239.24714,0.00050289,120]
[339380380,1727521848903,-151.0,0.00050289,120]
[339380381,1727521848913,-351.730114,0.00050289,120]
[339380382,1727521848923,-351.730114,0.00050289,120]
[339380383,1727521848932,-351.730114,0.00050289,120]
[339380384,1727521848942,-351.730114,0.00050289,120]
[339380385,1727521848952,-1108.192677,0.00050289,120]
[339380386,1727521848962,-1108.192677,0.00050289,120]
[339380387,1727521848971,-1108.192677,0.00050289,120]
[339380388,1727521848981,-1108.192677,0.00050289,120]
[339380389,1727521848991,-235.277402,0.00050289,120]
[339380390,1727521849002,-151.0,0.00050289,120]
[339380391,1727521849011,-151.0,0.00050289,120]
[339380392,1727521849021,-151.0,0.00050289,120]
[339380393,1727521849033,-155.264264,0.00050299,120]
[339380394,1727521849043,-151.0,0.00050299,120]
[339380395,1727521849053,-151.409785,0.00050299,120]
[339380396,1727521849062,-151.0,0.00050299,120]
[339380397,1727521849073,-151.0,0.00050299,120]
[339380398,1727521849082,-151.0,0.00050299,120]
[339380399,1727521849091,-151.0,0.00050299,120]
[339380400,1727521849101,-1725.096911,0.00050299,14]
[339380401,1727521849111,-1725.096911,0.00050299,14]
[339380402,1727521849121,-152.571959,0.00050299,120]
[339380403,1727521849131,-151.0,0.00050299,120]
[339380404,1727521849141,-151.0,0.00050299,120]
[339380405,1727521849151,-151.0,0.00050299,120]
[339380406,1727521849161,-151.0,0.00050299,120]
[339380407,1727521849170,-151.0,0.00050299,120]
[339380408,1727521849180,-151.0,0.00050299,7]
[339380409,1727521849189,-151.0,0.00050299,7]
[339380410,1727521849199,-1820.01868985,0.00050307,7]
[339380411,1727521849210,-206.556517,0.00050317,120]
[339380412,1727521849220,-206.556517,0.00050317,120]
[339380413,1727521849230,-161.211059,0.00050317,120]
[339380414,1727521849240,-161.211059,0.00050317,120]
[339380415,1727521849250,-239.24714,0.00050317,120]
[339380416,1727521849260,-239.24714,0.00050317,120]
[339380417,1727521849270,-351.730114,0.00050317,120]
[339380418,1727521849279,-351.730114,0.00050317,120]
[339380419,1727521849290,-1108.192677,0.00050317,120]
[339380420,1727521849300,-1108.192677,0.00050317,120]
[339380421,1727521849309,-151.0,0.00050317,120]
[339380422,1727521849321,-151.0,0.00050317,120]
[339380423,1727521849331,-1820.01868985,0.0005037,7]
[339380424,1727521849341,-503.52218049,0.00050373,10]
[339380425,1727521849351,-300.0,0.00050373,10]
[339380426,1727521849361,-206.556517,0.0005038,120]
[339380427,1727521849372,-206.556517,0.0005038,120]
[339380428,1727521849381,-161.211059,0.0005038,120]
[339380429,1727521849391,-161.211059,0.0005038,120]
[339380430,1727521849400,-239.24714,0.0005038,120]
[339380431,1727521849410,-239.24714,0.0005038,120]
[339380432,1727521849420,-351.730114,0.0005038,120]